bitfinex/quotes_ETHUSD_20250107
["timestamp","ask_amount","ask_price","bid_price","bid_amount"]
[1736247770290,1.14049404,3655.9,3655.8,4.3466]
[1736247770832,1.14049404,3655.9,3655.8,7.10932129]
[1736247771020,1.14049404,3655.9,3655.8,7.08197]
[1736247771333,0.94947651,3655.9,3655.8,4.08197]
[1736247772385,1.14049404,3656.7,3655.9,0.55]
[1736247772587,1.14049404,3656.7,3656.2,0.55]
[1736247773737,0.94880498,3656.6,3656.2,0.55]
[1736247774800,1.14049404,3656.8,3656.2,0.55]
[1736247775128,3.29330851,3656.7,3656.2,0.55]
[1736247775432,2.73473,3656.7,3656.2,0.55]
[1736247775957,3.54183,3656.7,3656.1,0.55]
[1736247776149,2.73473,3656.7,3656.1,1.73553402]
[1736247776477,1.42268147,3656.6,3656.1,1.73553402]
[1736247776769,1.42268147,3656.6,3656.1,0.55]
[1736247777554,3.87522404,3656.7,3656.1,0.55]
[1736247777846,3.87522404,3656.7,3656.2,0.7934]
[1736247778051,3.87522404,3656.7,3656.3,0.55]
[1736247778452,2.73479,3656.6,3656.3,0.55]
[1736247778754,3.68299423,3656.6,3656.3,0.55]
[1736247779885,3.68299423,3656.6,3656.2,0.7934]
[1736247779886,0.777,3656.5,3655.8,3.7934]
[1736247780033,2.73516,3656.1,3655.8,0.7934]
[1736247781351,2.73516,3656.1,3655.9,0.55]
[1736247783059,1.14049404,3656.4,3655.9,0.55]
[1736247783060,2.73502,3656.3,3655.9,0.55]
[1736247783531,2.73515,3656.2,3655.9,0.55]
[1736247783748,2.73515,3656.1,3655.9,0.55]
[1736247783948,1.2192644,3656.2,3655.5,0.7628]
[1736247784481,2.73539,3655.8,3655.5,0.7628]
[1736247784834,2.73539,3655.8,3655.6,0.55]
[1736247785165,1.2192644,3656.2,3655.6,0.55]
[1736247785328,2.73523,3656.0,3655.6,0.55]
[1736247788767,2.35975844,3656.2,3655.6,0.55]
[1736247788938,4.26314844,3656.2,3655.6,0.55]
[1736247789582,2.73515,3656.1,3655.6,0.55]
[1736247793034,2.73524,3656.0,3655.6,0.55]
[1736247794176,3.87560404,3656.2,3655.7,0.7645]
[1736247794344,4.93582236,3656.2,3655.7,0.7645]
[1736247795379,3.79532832,3656.2,3655.7,0.7645]
[1736247796587,1.06021832,3656.2,3655.7,0.7645]
[1736247796880,3.87551404,3656.3,3655.7,0.7645]
[1736247797285,2.73502,3656.3,3655.7,0.7645]
[1736247798704,2.37009141,3656.2,3655.7,0.7645]
[1736247799581,3.87551404,3656.3,3655.7,0.7645]
[1736247801937,0.94804937,3656.2,3655.7,0.7645]
[1736247804182,0.94804937,3656.2,3655.8,1.18553402]
[1736247804888,3.68314937,3656.2,3655.8,1.18553402]
[1736247805281,2.7351,3656.2,3655.8,1.18553402]
[1736247805885,1.14049404,3656.3,3655.8,1.18553402]
[1736247806704,2.73495,3656.4,3655.8,1.18553402]
[1736247806705,3.87544404,3656.4,3655.9,0.55]
[1736247807192,3.87544404,3656.4,3656.0,0.8053]
[1736247807799,0.94804607,3656.3,3656.0,0.8053]
[1736247808168,0.94804607,3656.3,3656.0,1.99083402]
[1736247808992,3.87533404,3656.6,3656.0,1.99083402]
[1736247810214,0.94812331,3656.5,3656.0,1.99083402]
[1736247811105,2.73487,3656.5,3656.0,1.99083402]
[1736247811409,2.73487,3656.5,3656.0,0.8053]
[1736247812373,2.73522,3656.1,3655.6,1.1473715]
[1736247812573,2.73522,3656.1,3655.6,4.1473715]
[1736247812902,2.73525,3656.0,3655.6,3.0]
[1736247813473,2.73511,3656.2,3655.6,3.0]
[1736247814187,3.87560404,3656.2,3655.6,3.0]
[1736247814401,2.73522,3656.1,3655.6,3.0]
[1736247816483,2.73529,3656.0,3655.5,0.7628]
[1736247816903,2.73529,3656.0,3655.5,1.94833402]
[1736247817906,1.14049404,3656.1,3655.5,1.94833402]
[1736247819147,1.42077559,3656.1,3655.5,1.94833402]
[1736247820250,2.73515,3656.1,3655.5,1.94833402]
[1736247820748,1.14049404,3656.2,3655.7,1.18553402]
[1736247820950,1.14049404,3656.2,3655.8,0.7677]
[1736247821402,0.9475133,3656.0,3655.8,0.7677]
[1736247823151,3.87557404,3656.2,3655.8,0.7677]
[1736247824453,2.3690635,3656.1,3655.8,0.7677]
[1736247825665,0.9476254,3656.0,3655.8,0.7677]
[1736247826666,1.14049404,3656.1,3655.8,0.7677]
[1736247827676,3.87557404,3656.2,3655.8,0.7677]
[1736247828776,2.36972643,3656.1,3655.8,0.7677]
[1736247830082,3.87557404,3656.2,3655.8,0.7677]
[1736247832285,2.36925377,3656.1,3655.8,0.7677]
[1736247833007,5.10442377,3656.1,3655.6,3.0]
[1736247833357,3.50974781,3656.0,3655.5,1.94943402]
[1736247834389,3.50974781,3655.9,3655.5,1.94943402]
[1736247835805,0.94770151,3655.8,3655.5,1.94943402]
[1736247836298,0.94770151,3655.8,3655.7,1.18553402]
[1736247836818,0.94770151,3655.8,3655.5,1.94943402]
[1736247836964,1.14049404,3656.0,3655.5,1.94943402]
[1736247838525,2.36864218,3655.9,3655.5,1.94943402]
[1736247839342,2.36864218,3655.9,3655.7,1.18553402]
[1736247839688,2.36864218,3655.9,3655.6,0.55]
[1736247840102,2.28098808,3656.3,3655.6,0.55]
[1736247840103,1.14049404,3656.1,3655.6,0.55]
[1736247840450,1.14049404,3656.1,3656.0,0.8079]
[1736247841190,1.14049404,3656.2,3656.0,0.8079]
[1736247841724,1.14049404,3656.2,3656.1,1.73553402]
[1736247841901,1.14049404,3656.2,3656.1,2.54343402]
[1736247842485,1.14049404,3656.3,3656.1,2.54343402]
[1736247844027,1.14049404,3656.8,3656.4,0.55]
[1736247844244,1.14049404,3656.8,3656.7,0.8059]
[1736247845391,0.94719029,3656.9,3656.7,0.8059]
[1736247846645,0.94719029,3657.2,3656.7,0.8059]
[1736247846844,0.94719029,3657.2,3656.8,1.18553402]
[1736247847991,2.73429,3657.3,3656.8,1.18553402]
[1736247848854,2.73429,3657.3,3656.7,0.8059]
[1736247849050,3.5469748,3657.3,3656.7,0.8059]
[1736247851709,0.8126848,3657.3,3656.7,0.8059]
[1736247851878,2.73447,3657.1,3656.3,0.8205]
[1736247852075,2.73447,3657.1,3656.5,1.18553402]
[1736247852403,0.827,3656.8,3656.3,1.18553402]
[1736247853595,0.0075,3656.7,3655.8,1.69053474]
[1736247853815,2.73478,3656.6,3655.9,1.18553402]
[1736247854307,0.827,3656.8,3655.9,1.18553402]
[1736247854308,2.73487,3656.5,3655.9,1.18553402]
[1736247854781,2.73487,3656.5,3656.1,1.18553402]
[1736247854984,0.827,3656.8,3656.1,1.18553402]
[1736247854985,0.0075,3656.7,3656.1,1.18553402]
[1736247855284,2.73485,3656.5,3655.9,1.18553402]
[1736247856176,0.0075,3656.7,3655.9,1.18553402]
[1736247856177,2.74221,3656.7,3655.9,1.18553402]
[1736247856369,4.70212404,3656.8,3656.1,1.18553402]
[1736247856703,5.3879501,3656.8,3656.1,1.18553402]
[1736247856909,2.73473,3656.7,3656.1,1.18553402]
[1736247857065,2.7348,3656.6,3655.9,0.55]
[1736247857268,0.8139,3656.7,3655.8,1.96353402]
[1736247857592,2.73503,3656.3,3655.8,1.18553402]
[1736247857781,3.089173,3656.3,3655.8,1.18553402]
[1736247858106,0.354143,3656.3,3655.8,1.18553402]
[1736247858282,2.73488,3656.5,3655.8,1.18553402]
[1736247858470,3.16868803,3656.6,3655.8,1.18553402]
[1736247858670,2.73496,3656.4,3655.8,1.18553402]
[1736247859765,0.8064,3656.6,3655.8,1.18553402]
[1736247859985,0.70856412,3656.5,3655.8,1.18553402]
[1736247860395,2.735,3656.4,3655.8,1.18553402]
[1736247860600,0.70856412,3656.5,3655.8,1.18553402]
[1736247861118,3.44341412,3656.5,3655.8,1.18553402]
[1736247861418,2.73485,3656.5,3656.0,1.18553402]
[1736247861721,1.14049404,3656.6,3656.2,1.18553402]
[1736247861902,1.14049404,3656.7,3656.2,1.18553402]
[1736247862073,3.87525404,3656.7,3656.2,1.18553402]
[1736247862274,3.87525404,3656.7,3656.1,0.7514]
[1736247862482,2.7348,3656.6,3656.1,0.7514]
[1736247862815,2.73486,3656.5,3656.1,0.7514]
[1736247863718,0.63802951,3656.7,3656.1,0.7514]
[1736247864026,3.37279951,3656.7,3656.1,0.7514]
[1736247865024,3.37279951,3656.7,3656.2,1.18553402]
[1736247865228,2.73477,3656.7,3656.2,1.18553402]
[1736247865531,1.93479404,3656.9,3656.2,1.18553402]
[1736247865826,2.73463,3656.8,3656.2,1.18553402]
[1736247865977,3.87498404,3657.0,3656.4,1.18553402]
[1736247866178,3.87498404,3657.0,3656.5,0.8245]
[1736247866380,1.14049404,3657.0,3656.6,1.18553402]
[1736247866580,1.14049404,3657.0,3656.5,0.8245]
[1736247866581,1.14049404,3657.0,3656.8,1.18553402]
[1736247867131,1.71074106,3657.1,3656.8,1.18553402]
[1736247867132,1.14049404,3657.1,3656.8,1.18553402]
[1736247868019,1.14049404,3657.1,3656.6,1.18553402]
[1736247868378,2.73432,3657.3,3656.6,1.18553402]
[1736247868979,2.73432,3657.3,3656.8,1.18553402]
[1736247869408,0.6483037,3657.3,3656.6,1.18553402]
[1736247869590,2.73435,3657.2,3656.5,0.8245]
[1736247870596,2.73443,3657.1,3656.5,0.8245]
[1736247870789,0.7744,3657.0,3656.5,0.8245]
[1736247872692,2.73443,3657.1,3656.5,0.8245]
[1736247872896,3.51907,3657.3,3656.8,1.18553402]
[1736247873077,2.73427,3657.3,3656.8,1.18553402]
[1736247873404,1.14049404,3657.4,3656.9,0.828]
[1736247873756,5.64764697,3657.5,3656.9,0.828]
[1736247873999,6.73611077,3657.5,3656.9,0.828]
[1736247875105,5.59561673,3657.5,3656.9,0.828]
[1736247879360,4.50715293,3657.5,3656.9,0.828]
[1736247880612,2.73409,3657.6,3657.2,1.18553402]
[1736247880961,2.73409,3657.6,3657.0,1.18553402]
[1736247881314,2.73409,3657.6,3657.1,0.7522]
[1736247881637,2.73412,3657.5,3657.1,0.7522]
[1736247881818,1.14049404,3657.8,3657.7,0.55]
[1736247882115,1.14049404,3657.8,3657.7,5.22168402]
[1736247882609,1.14049404,3657.8,3657.7,8.22168402]
[1736247883921,0.8167,3658.8,3657.7,8.22168402]
[1736247883922,1.95719404,3658.8,3658.0,0.7607]
[1736247884216,0.75414992,3658.7,3658.2,1.18553402]
[1736247885515,0.75414992,3658.7,3658.0,0.7607]
[1736247888572,2.74065,3658.8,3658.0,0.7607]
[1736247889513,1.14049404,3659.0,3658.6,2.62353705]
[1736247889708,1.14049404,3659.2,3658.6,2.62353705]
[1736247890023,1.14049404,3659.2,3658.5,0.55]
[1736247891474,0.86946132,3659.2,3658.5,0.55]
[1736247891695,2.73283,3659.3,3658.5,0.55]
[1736247892216,0.0075,3659.1,3658.4,0.801]
[1736247892371,2.73311,3658.9,3658.4,0.801]
[1736247893088,2.73314,3658.8,3658.4,0.801]
[1736247895568,0.0075,3658.9,3658.4,0.801]
[1736247899523,2.74058,3658.9,3658.4,0.801]
[1736247901202,0.0075,3658.6,3657.8,3.0]
[1736247901372,0.8382,3658.6,3657.9,0.7631]
[1736247901569,0.0075,3658.2,3657.4,0.7631]
[1736247901774,2.7411,3658.2,3657.4,0.7631]
[1736247902320,2.73377,3658.0,3657.4,0.7631]
[1736247903295,0.015,3658.5,3657.4,0.7631]
[1736247903516,2.7411,3658.2,3657.4,0.7631]
[1736247906116,4.33427811,3659.1,3657.8,3.49417]
[1736247906117,2.73314,3658.8,3657.8,3.49417]
[1736247906285,2.73314,3658.8,3657.9,0.55]
[1736247906491,0.0075,3658.7,3658.0,0.7603]
[1736247908818,2.7329,3659.2,3658.3,0.55]
[1736247909021,0.0075,3659.1,3658.3,0.55]
[1736247909234,0.0075,3659.1,3658.4,0.7503]
[1736247910643,0.7628,3659.4,3658.4,0.7503]
[1736247910644,0.0075,3659.3,3658.4,0.7503]
[1736247910786,0.015,3659.3,3658.4,0.7503]
[1736247910987,0.0075,3658.6,3657.6,0.7611]
[1736247911207,0.0075,3658.7,3657.8,0.7611]
[1736247911423,0.0075,3658.6,3657.8,0.7611]
[1736247912599,0.0075,3658.6,3657.9,0.55]
[1736247912916,0.0075,3658.8,3658.0,0.7722]
[1736247913118,2.73292,3659.1,3658.3,0.55]
[1736247913302,0.0075,3659.0,3658.4,0.7627]
[1736247914121,0.0075,3658.9,3658.4,0.7627]
[1736247914453,0.3880914,3659.0,3657.7,2.62353705]
[1736247914454,0.0075,3658.5,3658.1,0.8112]
[1736247915388,2.73342,3658.5,3658.1,0.8112]
[1736247918046,0.0075,3658.7,3658.1,0.8112]
[1736247918196,2.73342,3658.5,3658.1,0.8112]
[1736247920648,2.74071,3658.7,3658.1,0.8112]
[1736247921139,2.73321,3658.7,3658.1,0.8112]
[1736247921465,0.0075,3658.8,3658.1,0.8112]
[1736247922265,2.73316,3658.8,3658.1,0.8112]
[1736247922562,2.73321,3658.7,3658.1,0.8112]
[1736247923151,2.73336,3658.5,3658.1,0.8112]
[1736247925658,0.0075,3658.6,3658.1,0.8112]
[1736247925879,1.14049404,3658.8,3658.1,0.8112]
[1736247926464,1.14049404,3658.8,3658.3,0.7643]
[1736247926668,1.14049404,3658.8,3658.5,0.7643]
[1736247927883,0.0075,3659.3,3658.5,0.7643]
[1736247928096,2.73285,3659.2,3658.5,0.7643]
[1736247929133,0.94716531,3659.1,3658.5,0.7643]
[1736247930489,2.73285,3659.2,3658.5,0.7643]
[1736247930790,1.14049404,3659.3,3658.6,3.9782683]
[1736247930993,1.14049404,3659.3,3658.7,0.7774]
[1736247931733,3.87318404,3659.4,3658.7,0.7774]
[1736247933459,2.73269,3659.4,3658.7,0.7774]
[1736247934886,0.0075,3659.5,3658.8,0.7698]
[1736247936192,2.73254,3659.6,3658.8,0.7698]
[1736247940994,2.73254,3659.6,3658.9,3.40393705]
[1736247941844,2.73254,3659.6,3658.9,0.7804]
[1736247945260,2.73254,3659.6,3658.7,0.027329]
[1736247945261,1.14049404,3660.0,3659.3,1.3634]
[1736247946003,1.14049404,3660.2,3659.3,1.3634]
[1736247946365,2.73218,3660.1,3659.3,1.3634]
[1736247948503,1.14049404,3660.3,3659.7,2.62353705]
[1736247948684,1.14049404,3660.3,3659.8,0.7811]
[1736247949053,2.73194,3660.4,3659.8,0.7811]
[1736247949054,3.87243404,3660.4,3659.8,0.7811]
[1736247950519,2.73194,3660.4,3659.8,0.7811]
[1736247951231,0.0075,3660.5,3659.8,0.7811]
[1736247952390,2.73197,3660.4,3659.8,0.7811]
[1736247952632,0.0075,3660.4,3659.8,0.7811]
[1736247952833,0.0075,3660.2,3659.8,0.7811]
[1736247953011,2.7322,3660.1,3659.8,0.7811]
[1736247953180,0.015,3660.0,3659.1,0.8187]
[1736247953375,2.73247,3659.7,3659.1,0.8187]
[1736247957834,0.0075,3659.8,3659.1,0.8187]
[1736247967239,0.015,3660.1,3659.1,0.8187]
[1736247967444,0.0075,3659.7,3659.1,0.8187]
[1736247968592,0.015,3659.3,3658.6,0.8211]
[1736247968850,2.73301,3659.0,3658.5,1.1473715]
[1736247969345,0.015,3659.3,3658.5,1.1473715]
[1736247969514,0.0075,3659.0,3658.5,1.1473715]
[1736247969941,2.73306,3658.9,3658.5,1.1473715]
[1736247970944,2.73306,3658.9,3658.4,0.8211]
[1736247971533,0.0075,3658.5,3657.8,0.8188]
[1736247972047,0.0075,3658.1,3657.8,0.8188]
[1736247972615,0.015,3658.3,3657.8,0.8188]
[1736247975119,0.0075,3658.2,3657.8,0.8188]
[1736247977688,2.73343,3658.5,3657.8,0.8188]
[1736247978457,0.0075,3658.4,3657.8,0.8188]
[1736247979029,1.14049404,3658.8,3658.1,0.7605]
[1736247980029,0.0075,3658.9,3658.1,0.7605]
[1736247980262,0.0075,3658.9,3658.3,2.62353705]
[1736247980470,0.0075,3658.9,3658.4,0.7806]
[1736247982944,2.74057,3658.9,3658.4,0.7806]
[1736247987170,0.0075,3659.0,3658.4,0.7806]
[1736247990265,2.74049,3659.0,3658.4,0.7806]
[1736247995326,2.74784,3659.2,3658.4,0.7806]
[1736247995477,3.099294,3659.2,3658.4,0.7806]
[1736247995975,0.366454,3659.2,3658.4,0.7806]
[1736247996181,0.0075,3659.0,3658.4,0.7806]
[1736247996924,0.0075,3659.1,3658.4,0.7806]
[1736247997135,0.0075,3659.2,3657.9,0.7907]
[1736247997416,3.49953,3659.3,3657.9,0.7907]
[1736247997417,2.73344,3658.4,3657.9,0.7907]
[1736247997618,0.348364,3658.3,3657.9,0.7907]
[1736247997793,0.0075,3658.3,3657.9,0.7907]
[1736247997989,2.74101,3658.3,3657.9,0.7907]
[1736247998404,2.74839,3658.5,3657.6,0.7907]
[1736247998575,0.0075,3658.1,3657.6,0.7907]
[1736247999721,0.0075,3658.0,3657.6,0.7907]
[1736248000483,0.0075,3657.9,3657.6,0.7907]
[1736248001813,0.0075,3658.5,3657.6,0.7907]
[1736248002010,3.36847851,3658.4,3657.6,0.7907]
[1736248002445,2.74854,3658.3,3657.6,0.7907]
[1736248006355,2.73339,3658.5,3657.6,0.7907]
[1736248006706,0.015,3658.5,3657.6,0.7907]
[1736248007023,0.0075,3658.3,3657.6,0.7907]
[1736248010750,2.74102,3658.3,3657.6,0.7907]
[1736248011049,0.0075,3658.1,3657.6,0.7907]
[1736248012058,0.0075,3658.0,3657.6,0.7907]
[1736248017577,0.0075,3658.1,3657.6,0.7907]
[1736248017878,2.73374,3658.0,3657.6,0.7907]
[1736248019082,2.74118,3658.1,3657.6,0.7907]
[1736248029392,2.74118,3658.1,3657.8,1.1842389]
[1736248029800,2.73375,3658.0,3657.8,1.1842389]
[1736248030096,2.73375,3658.0,3657.6,1.9749389]
[1736248032375,0.0075,3658.1,3657.6,1.9749389]
[1736248032960,1.14049404,3658.3,3657.6,0.7907]
[1736248033195,2.73375,3658.0,3657.7,1.1842389]
[1736248033992,2.73375,3658.0,3657.6,0.7907]
[1736248034192,2.73375,3658.0,3657.2,3.0]
[1736248034193,0.0075,3658.0,3657.2,0.7893]
[1736248034406,0.0075,3657.6,3656.9,3.1209104]
[1736248034694,0.0075,3657.6,3657.1,1.1842389]
[1736248034855,2.74155,3657.6,3657.1,1.1842389]
[1736248035257,2.73413,3657.5,3657.1,1.1842389]
[1736248037095,2.73418,3657.4,3657.1,1.1842389]
[1736248037977,2.73433,3657.2,3656.9,0.7893]
[1736248038182,2.73433,3657.2,3656.9,1.9735389]
[1736248038605,2.73433,3657.2,3656.9,0.7893]
[1736248038769,2.73433,3657.2,3657.0,1.1842389]
[1736248040927,0.0075,3657.3,3657.0,1.1842389]
[1736248041382,2.7343,3657.3,3657.0,1.1842389]
[1736248043286,0.0075,3657.4,3657.2,1.1842389]
[1736248043486,2.74168,3657.4,3657.2,1.1842389]
[1736248043682,2.74168,3657.4,3657.2,2.0104389]
[1736248044622,1.14049404,3657.5,3657.2,2.0104389]
[1736248044822,1.14049404,3657.5,3657.4,1.1842389]
[1736248044983,1.14049404,3657.5,3657.4,1.9557389]
[1736248045613,0.94667546,3657.5,3657.4,1.9557389]
[1736248046891,2.73396,3657.7,3657.4,1.9557389]
[1736248047125,2.74155,3657.6,3657.4,1.1842389]
[1736248048015,2.7341,3657.5,3657.4,1.1842389]
[1736248048222,2.7341,3657.5,3657.2,1.9815389]
[1736248049543,0.0075,3657.6,3657.4,1.1842389]
[1736248050312,3.87448404,3657.7,3657.4,1.1842389]
[1736248050506,3.87448404,3657.7,3657.6,1.1842389]
[1736248050507,2.73399,3657.7,3657.6,1.1842389]
[1736248051551,0.0075,3657.8,3657.6,1.1842389]
[1736248051853,0.94717711,3657.7,3657.6,1.1842389]
[1736248056561,3.68112711,3657.7,3657.4,1.1842389]
[1736248056938,4.33511333,3657.7,3657.4,1.1842389]
[1736248057135,4.33511333,3657.7,3657.2,1.9815389]
[1736248057136,0.0075,3657.6,3657.2,1.9815389]
[1736248057335,2.73425,3657.4,3657.2,1.1842389]
[1736248060596,1.14049404,3657.5,3657.2,1.1842389]
[1736248060774,1.14049404,3657.5,3657.4,1.1842389]
[1736248061971,2.74155,3657.6,3657.4,1.1842389]
[1736248063138,2.74155,3657.6,3657.4,1.9724389]
[1736248064679,2.74155,3657.6,3657.4,0.7882]
[1736248065674,0.64843851,3657.6,3657.2,1.9767389]
[1736248065903,0.94713606,3657.5,3657.2,1.9767389]
[1736248066218,2.73419,3657.4,3657.2,1.9767389]
[1736248066675,0.94713606,3657.5,3657.2,1.9767389]
[1736248066973,1.14049404,3657.6,3657.4,1.1842389]
[1736248068166,0.94725326,3657.6,3657.4,1.1842389]
[1736248069280,3.87452404,3657.7,3657.4,1.1842389]
[1736248070645,2.73406,3657.6,3657.4,1.1842389]
[1736248071678,1.14049404,3657.7,3657.2,1.9767389]
[1736248071874,2.7341,3657.5,3657.2,1.9767389]
[1736248072081,0.0075,3657.6,3657.2,1.9767389]
[1736248072291,2.73422,3657.4,3657.2,1.1842389]
[1736248074300,3.88203404,3657.6,3657.3,0.755]
[1736248075796,0.94767689,3657.5,3657.3,0.755]
[1736248076359,0.94767689,3657.5,3657.4,1.1842389]
[1736248077281,1.14049404,3657.6,3657.4,1.1842389]
[1736248079709,0.94804692,3657.5,3657.4,1.1842389]
[1736248081907,1.14049404,3657.7,3657.4,1.1842389]
[1736248082111,1.14049404,3657.7,3657.6,2.5629389]
[1736248083113,2.28098808,3658.1,3657.6,2.5629389]
[1736248083114,1.14049404,3658.0,3657.6,2.5629389]
[1736248083278,1.14049404,3658.0,3657.9,1.1842389]
[1736248084129,1.42182897,3658.1,3657.9,1.1842389]
[1736248084270,2.73373,3658.0,3657.6,0.8287]
[1736248084477,1.2900053,3658.0,3657.5,1.1842389]
[1736248084811,2.73387,3657.9,3657.5,1.1842389]
[1736248085368,2.36960222,3657.9,3657.5,1.1842389]
[1736248085710,2.36960222,3657.9,3657.7,1.1842389]
[1736248085865,5.10341222,3657.9,3657.7,1.1842389]
[1736248086467,0.94777325,3657.8,3657.7,1.1842389]
[1736248086911,0.94777325,3657.8,3657.4,0.7954]
[1736248087120,3.68167325,3657.8,3657.5,1.1842389]
[1736248087474,5.1033898,3657.8,3657.5,1.1842389]
[1736248088595,2.3694898,3657.7,3657.5,1.1842389]
[1736248088795,0.0075,3657.6,3656.9,1.1473715]
[1736248089870,0.0075,3657.6,3656.8,2.1364389]
[1736248089871,1.14049404,3657.4,3656.8,2.1364389]
[1736248090116,1.14049404,3657.4,3657.0,1.1842389]
[1736248090476,2.73429,3657.3,3657.0,1.1842389]
[1736248091380,2.3694898,3657.2,3656.8,0.9522]
[1736248092112,2.3694898,3657.2,3656.8,0.7692]
[1736248092477,0.94777325,3657.1,3656.8,0.7692]
[1736248093718,0.94777325,3657.2,3656.8,0.7692]
[1736248094914,4.66168404,3657.3,3656.8,0.7692]
[1736248096007,1.42121583,3657.2,3656.8,0.7692]
[1736248096918,1.14049404,3657.3,3656.8,0.7692]
[1736248098417,5.29572397,3657.4,3656.8,0.7692]
[1736248098595,2.7343,3657.3,3656.8,0.7692]
[1736248099118,0.0075,3657.2,3656.8,0.7692]
[1736248099320,2.73448,3657.0,3656.8,0.7692]
[1736248099500,2.73456,3656.9,3656.5,0.809]
[1736248100935,0.807,3657.0,3656.5,0.809]
[1736248103028,2.73444,3657.1,3656.5,0.809]
[1736248103190,2.73444,3657.1,3656.5,3.43418103]
[1736248104630,1.14049404,3657.2,3656.5,3.46152777]
[1736248104790,1.14049404,3657.2,3656.5,3.43418103]
[1736248105328,3.88226404,3657.3,3656.5,3.43418103]
[1736248106292,4.5945822,3657.3,3656.5,3.43418103]
[1736248106743,3.45408816,3657.3,3656.5,3.43418103]
[1736248106896,2.73433,3657.2,3656.5,3.43418103]
[1736248108627,1.14799404,3657.3,3656.5,3.43418103]
[1736248108993,1.14049404,3657.4,3656.7,0.7983]
[1736248109943,0.94695918,3657.4,3656.7,0.7983]
[1736248110936,2.73412,3657.5,3656.7,0.7983]
[1736248111233,2.73412,3657.5,3656.8,2.62518103]
[1736248111460,2.73412,3657.5,3656.7,0.82564382]
[1736248111461,2.73412,3657.5,3657.1,1.18459903]
[1736248111998,2.73461,3656.9,3656.4,4.1473715]
[1736248112311,2.73463,3656.8,3656.4,4.1473715]
[1736248112721,0.7545,3656.9,3656.4,1.1473715]
[1736248112722,2.7348,3656.6,3656.4,1.1473715]
[1736248113548,2.73485,3656.5,3656.4,1.1473715]
[1736248114005,2.73485,3656.5,3655.9,1.18459903]
[1736248115420,2.73485,3656.5,3655.8,3.9640507]
[1736248117559,2.73485,3656.5,3655.8,3.9367]
[1736248119860,0.8221,3656.4,3655.8,3.9367]
[1736248121241,0.8221,3656.4,3655.8,3.96405066]
[1736248123327,0.765,3656.6,3655.8,3.96405066]
[1736248125041,3.49981,3656.6,3655.8,3.96405066]
[1736248129470,2.73485,3656.5,3655.8,3.96405066]
[1736248134376,0.765,3656.6,3655.8,3.96405066]
[1736248135281,0.765,3656.6,3655.8,0.96405066]
[1736248135483,3.9645524,3656.6,3656.1,1.18522803]
[1736248135854,1.2297724,3656.6,3655.8,0.96405066]
[1736248136185,2.73488,3656.5,3655.9,1.18522803]
[1736248141788,2.73494,3656.4,3655.9,1.18522803]
[1736248142389,2.73517,3656.1,3655.5,0.183]
[1736248142556,2.73517,3656.1,3655.6,1.18522803]
[1736248146198,2.73517,3656.1,3655.5,0.183]
[1736248146398,2.73517,3656.1,3655.6,1.18522803]
[1736248146695,2.73517,3656.1,3655.3,0.8018]
[1736248146895,3.87345441,3656.1,3655.4,1.18522803]
[1736248147275,3.87345441,3656.1,3655.6,1.18522803]
[1736248150698,2.73524,3656.0,3655.6,1.18522803]
[1736248151295,2.73524,3656.0,3655.3,0.8018]
[1736248151296,2.73524,3656.0,3655.4,1.18522803]
[1736248151497,2.73544,3655.8,3655.3,0.8018]
[1736248151695,2.73544,3655.8,3655.3,1.98702803]
[1736248152203,2.73549,3655.7,3655.3,1.98702803]
[1736248154117,0.0075,3655.8,3655.3,1.98702803]
[1736248154339,0.0075,3655.8,3655.5,1.18522803]
[1736248154498,5.01389845,3656.1,3655.5,1.18522803]
[1736248154825,1.13823441,3656.1,3655.5,1.18522803]
[1736248154986,0.8318,3656.1,3655.5,1.18522803]
[1736248156816,3.56699,3656.1,3655.5,1.18522803]
[1736248157189,0.94661299,3656.0,3655.5,1.18522803]
[1736248157730,0.0075,3655.5,3655.0,1.9798715]
[1736248157925,0.0075,3655.5,3655.0,1.1473715]
[1736248157926,2.9327128,3655.4,3655.0,1.1473715]
[1736248158428,0.1970328,3655.4,3655.0,1.1473715]
[1736248158729,0.0075,3655.5,3654.9,1.18522803]
[1736248159224,2.73569,3655.4,3654.9,1.18522803]
[1736248159399,2.73569,3655.4,3654.8,1.1473715]
[1736248160217,2.73577,3655.3,3654.8,1.1473715]
[1736248160436,3.50742039,3655.4,3654.7,0.8325]
[1736248161401,2.74313,3655.5,3654.7,0.8325]
[1736248161608,2.73568,3655.4,3654.7,0.8325]
[1736248161834,2.73575,3655.3,3654.7,0.8325]
[1736248165540,2.73575,3655.3,3654.7,0.85985871]
[1736248166603,2.73575,3655.3,3654.7,0.8325]
[1736248167664,2.74313,3655.5,3654.9,2.62817058]
[1736248169343,2.74313,3655.5,3654.7,0.85985871]
[1736248169642,2.73545,3655.7,3655.0,0.8308]
[1736248170734,0.0075,3655.7,3655.0,0.8308]
[1736248172113,2.74296,3655.7,3655.0,0.8308]
[1736248172837,2.73539,3655.8,3655.0,0.8308]
[1736248173140,0.0075,3655.7,3655.0,0.8308]
[1736248174050,2.73539,3655.8,3655.0,0.8308]
[1736248174051,2.73523,3656.0,3655.1,0.02735697]
[1736248174215,2.73523,3656.0,3655.2,0.7576]
[1736248174423,2.73523,3656.0,3655.4,0.7576]
[1736248175533,1.14049404,3656.1,3655.4,0.7576]
[1736248176063,2.74271,3656.1,3655.4,0.7576]
[1736248178778,3.41018192,3656.1,3655.4,0.7576]
[1736248179241,2.73523,3656.0,3655.4,0.7576]
[1736248181480,2.73523,3656.0,3655.4,1.94334607]
[1736248182770,2.73532,3655.9,3655.4,1.94334607]
[1736248184362,3.88316404,3656.1,3655.4,1.94334607]
[1736248184563,2.73526,3656.0,3655.4,1.94334607]
[1736248187251,0.94606414,3655.9,3655.4,1.94334607]
[1736248188450,2.73526,3656.0,3655.4,1.94334607]
[1736248189899,2.04356077,3656.1,3655.4,1.94334607]
[1736248190192,2.73532,3655.9,3655.4,1.94334607]
[1736248191843,1.52516556,3655.8,3655.1,0.8191]